fUST/lending_fUST_20240307
["ID","MTS","AMOUNT","RATE_DAILY","PERIOD"]
[317349859,1709758246390,-215.52,0.00022999,2]
[317349860,1709758246399,-215.52,0.00022999,2]
[317349861,1709758246408,-215.52,0.00022999,2]
[317349862,1709758246417,-63405.8405365,0.00023,5]
[317349863,1709758246443,-781.92972777,0.00022998,2]
[317349865,1709758246452,-51015.59669617,0.00023,5]
[317349886,1709758463491,154.92253773,0.000176,2]
[317349913,1709759067496,1129.1518949,0.00019487,2]
[317349914,1709759126535,9553.5887678,0.00019512,2]
[317349915,1709759236703,776.598185,0.000189,2]
[317349921,1709759365182,-781.92972777,0.00020266,2]
[317349922,1709759365202,-154.8915759,0.00020267,2]
[317349923,1709759365221,-238.75085249,0.00020268,2]
[317349924,1709759365243,-558.00671069,0.00020269,2]
[317349925,1709759365263,-320.79134332,0.00020269,2]
[317349926,1709759365286,-154.8915759,0.0002027,2]
[317349927,1709759365305,-176.530748,0.00020274,2]
[317349928,1709759365325,-175.050086,0.00020404,2]
[317349929,1709759365344,-289.67124539,0.00020698,2]
[317349955,1709759432413,-33.43374622,0.00020698,2]
[317349956,1709759432423,-320.79134332,0.00021998,2]
[317349957,1709759432431,-20493.48050387,0.00021999,2]
[317349958,1709759432440,-2226.62490612,0.00022,2]
[317349959,1709759432450,-1118.0,0.00022,2]
[317349960,1709759432459,-157.26372662,0.00022,2]
[317349961,1709759432468,-154.8915759,0.00022191,2]
[317349962,1709759432477,-1118.0,0.00022192,2]
[317349963,1709759432486,-1118.0,0.00022466,2]
[317349964,1709759432494,-525.51017789,0.0002274,2]
[317349965,1709759432516,-592.48982211,0.0002274,2]
[317349966,1709759432525,-623.98,0.0002289,3]
[317349967,1709759432535,-1008.32320989,0.00022899,2]
[317349968,1709759432545,-98572.19412356,0.000229,2]
[317349969,1709759432559,-1980.08098245,0.000229,2]
[317349970,1709759432569,-500.0,0.00022996,2]
[317349972,1709759432579,-500.0,0.00022996,2]
[317349974,1709759432589,-500.0,0.00022996,2]
[317349975,1709759432599,-500.0,0.00022996,2]
[317349977,1709759432609,-273.42338678,0.00022996,2]
[317349979,1709759432620,-500.0,0.00022996,2]
[317349981,1709759432631,-500.0,0.00022996,2]
[317349984,1709759432642,-500.0,0.00022996,2]
[317349985,1709759432652,-500.0,0.00022996,2]
[317349988,1709759432664,-500.0,0.00022996,2]
[317349989,1709759432675,-500.0,0.00022996,2]
[317349991,1709759432686,-500.0,0.00022996,2]
[317349994,1709759432696,-500.0,0.00022996,2]
[317349995,1709759432705,-500.0,0.00022996,2]
[317349997,1709759432715,-562.3693796,0.00022996,2]
[317349999,1709759432724,-500.0,0.00022996,2]
[317350001,1709759432734,-500.0,0.00022996,2]
[317350003,1709759432743,-500.0,0.00022996,2]
[317350005,1709759432756,-500.0,0.00022996,2]
[317350007,1709759432767,-500.0,0.00022996,2]
[317350009,1709759432777,-500.0,0.00022996,2]
[317350011,1709759432789,-500.0,0.00022996,2]
[317350013,1709759432799,-500.0,0.00022996,2]
[317350015,1709759432808,-624.727334,0.00022996,2]
[317350017,1709759432817,-500.0,0.00022996,2]
[317350019,1709759432826,-457.58494133,0.00022996,2]
[317350021,1709759432835,-500.0,0.00022996,2]
[317350023,1709759432845,-500.0,0.00022996,2]
[317350025,1709759432854,-282.43606694,0.00022996,2]
[317350027,1709759432866,-217.56393306,0.00022996,2]
[317350029,1709759432875,-500.0,0.00022996,2]
[317350031,1709759432885,-436.35593955,0.00022996,2]
[317350100,1709759438444,-157.26372662,0.0002219,2]
[317350101,1709759438454,-199.15972664,0.00022998,2]
[317350104,1709759438779,-300.84027336,0.00022998,2]
[317350105,1709759438789,-500.0,0.00022998,2]
[317350106,1709759438799,-500.0,0.00022998,2]
[317350107,1709759438808,-345.0,0.00022998,2]
[317350108,1709759438818,-500.0,0.00022998,2]
[317350109,1709759438827,-500.0,0.00022998,2]
[317350110,1709759438837,-500.0,0.00022998,2]
[317350111,1709759438846,-500.0,0.00022998,2]
[317350112,1709759438856,-273.06499348,0.00022998,2]
[317350113,1709759438865,-500.0,0.00022998,2]
[317350114,1709759438875,-500.0,0.00022998,2]
[317350115,1709759438885,-500.0,0.00022998,2]
[317350116,1709759438894,-500.0,0.00022998,2]
[317350117,1709759438903,-500.0,0.00022998,2]
[317350118,1709759438912,-450.43342915,0.00022998,2]
[317350119,1709759438921,-500.0,0.00022998,2]
[317350121,1709759438931,-500.0,0.00022998,2]
[317350123,1709759438939,-500.0,0.00022998,2]
[317350124,1709759438948,-500.0,0.00022998,2]
[317350126,1709759438957,-356.23693796,0.00022998,2]
[317350128,1709759438967,-500.0,0.00022998,2]
[317350130,1709759438976,-500.0,0.00022998,2]
[317350131,1709759438985,-500.0,0.00022998,2]
[317350133,1709759438994,-500.0,0.00022998,2]
[317350134,1709759439004,-500.0,0.00022998,2]
[317350135,1709759439013,-500.0,0.00022998,2]
[317350136,1709759439022,-500.0,0.00022998,2]
[317350137,1709759439113,-500.0,0.00022998,2]
[317350138,1709759439122,-462.4727334,0.00022998,2]
[317350139,1709759439133,-451.09391154,0.00022998,2]
[317350140,1709759439143,-744.79129449,0.00022998,2]
[317350141,1709759439152,-238.42670154,0.00022998,2]
[317350142,1709759439162,-170.04519386,0.00022998,2]
[317350143,1709759439171,-168.9975684,0.00022998,2]
[317350144,1709759439180,-155.41295091,0.00022998,2]
[317350145,1709759439189,-640.09770393,0.00022998,2]
[317350146,1709759439198,-155.507387,0.00022998,2]
[317350147,1709759439208,-181.33527368,0.00022998,2]
[317350148,1709759439217,-785.60821434,0.00022998,2]
[317350149,1709759439226,-527.79465357,0.00022999,2]
[317350150,1709759439235,-538.54259214,0.00022999,2]
[317350151,1709759439244,-267.8623393,0.00022999,2]
[317350152,1709759439253,-500.0,0.00022999,2]
[317350153,1709759439262,-172.58236719,0.00022999,2]
[317350154,1709759439271,-500.0,0.00022999,2]
[317350155,1709759439280,-500.0,0.00022999,2]
[317350156,1709759439290,-500.0,0.00022999,2]
[317350157,1709759439300,-500.0,0.00022999,2]
[317350158,1709759439309,-500.0,0.00022999,2]
[317350159,1709759439319,-500.0,0.00022999,2]
[317350160,1709759439328,-289.64825391,0.00022999,2]
[317350161,1709759439337,-495.7,0.00022999,2]
[317350162,1709759439347,-495.7,0.00022999,2]
[317350163,1709759439357,-495.7,0.00022999,2]
[317350164,1709759439366,-495.7,0.00022999,2]
[317350165,1709759439376,-495.7,0.00022999,2]
[317350166,1709759439385,-495.7,0.00022999,2]
[317350167,1709759439394,-495.7,0.00022999,2]
[317350168,1709759439403,-495.7,0.00022999,2]
[317350169,1709759439412,-495.7,0.00022999,2]
[317350170,1709759439422,-495.7,0.00022999,2]
[317350171,1709759439431,-276.84141771,0.00023,3]
[317350172,1709759439441,-4052655.26834808,0.00023,5]
[317350179,1709759441475,-26252.55122826,0.00023,5]
[317350180,1709759441488,-705.39713821,0.00023,5]
[317350181,1709759441500,-644.44286179,0.00023,5]
[317350182,1709759441512,-3433.11429943,0.00023,5]
[317350183,1709759441535,-2163.43126643,0.00023,5]
[317350201,1709759443580,-338.86419644,0.00023,5]
[317350202,1709759443592,-2024.71679781,0.00023,5]
[317350203,1709759443639,-6920.72058762,0.00023,5]
[317350214,1709759446657,-878.92675256,0.00023,5]
[317350315,1709760393110,-155.29117884,0.00020899,2]
[317350316,1709760393145,-155.29117884,0.00020899,2]
[317350317,1709760442483,517.73212333,0.000189,2]
[317350323,1709760551155,-320.79134332,0.00020895,2]
[317350324,1709760551174,-4492.75860013,0.00020896,2]
[317350325,1709760551199,-3142.51763785,0.00020897,2]
[317350326,1709760551220,-202.67427466,0.00020899,2]
[317350327,1709760551240,-663.02346604,0.00021362,2]
[317350381,1709760633015,-41.42629406,0.00021362,2]
[317350382,1709760633025,-595.87918362,0.00021999,2]
[317350383,1709760633037,-895.0,0.00022,2]
[317350384,1709760633047,-895.0,0.00022192,2]
[317350385,1709760633057,-895.0,0.00022466,2]
[317350386,1709760633066,-895.0,0.0002274,2]
[317350387,1709760633076,-306.9615974,0.000228,2]
[317350388,1709760633087,-625.74043598,0.0002281,2]
[317350389,1709760633098,-1671.59010655,0.00022889,2]
[317350390,1709760633108,-57028.84216428,0.000229,2]
[317350391,1709760633118,-306.0,0.000229,2]
[317350392,1709760633128,-162.07,0.0002299,3]
[317350393,1709760633138,-486.24,0.0002299,3]
[317350394,1709760633149,-168.9975684,0.00022998,2]
[317350395,1709760633159,-181.33527368,0.00022998,2]
[317350396,1709760633170,-170.04519386,0.00022998,2]
[317350397,1709760633179,-785.60821434,0.00022998,2]
[317350398,1709760633189,-744.79129449,0.00022998,2]
[317350399,1709760633198,-451.09391154,0.00022998,2]
[317350400,1709760633207,-155.507387,0.00022998,2]
[317350401,1709760633218,-527.79465357,0.00022998,2]
[317350402,1709760633228,-155.41295091,0.00022998,2]
[317350403,1709760633238,-538.54259214,0.00022998,2]
[317350404,1709760633249,-640.09770393,0.00022998,2]
[317350405,1709760633260,-238.42670154,0.00022998,2]
[317350406,1709760633270,-524.19922548,0.00022998,2]
[317350407,1709760633281,-1362.14528464,0.00022998,5]
[317350408,1709760633290,-234.34055445,0.00022998,2]
[317350409,1709760633301,-2563.9187028,0.00022998,2]
[317350415,1709760638950,-1180.04679731,0.00022998,2]
[317350417,1709760638964,-175.38717322,0.00022999,2]
[317350419,1709760638973,-703.5775733,0.00022999,2]
[317350420,1709760638983,-500.0,0.00022999,2]
[317350421,1709760638993,-233.66918633,0.00022999,2]
[317350422,1709760639003,-500.0,0.00022999,2]
[317350423,1709760639012,-500.0,0.00022999,2]
[317350424,1709760639022,-500.0,0.00022999,2]
[317350425,1709760639032,-500.0,0.00022999,2]
[317350426,1709760639042,-345.0,0.00022999,2]
[317350427,1709760639052,-500.0,0.00022999,2]
[317350428,1709760639062,-500.0,0.00022999,2]
[317350429,1709760639071,-500.0,0.00022999,2]
[317350430,1709760639080,-273.06499348,0.00022999,2]
[317350431,1709760639090,-500.0,0.00022999,2]
[317350432,1709760639099,-500.0,0.00022999,2]
[317350433,1709760639108,-500.0,0.00022999,2]
[317350435,1709760639117,-500.0,0.00022999,2]
[317350437,1709760639126,-500.0,0.00022999,2]
[317350438,1709760639135,-450.43342915,0.00022999,2]
[317350440,1709760639144,-500.0,0.00022999,2]
[317350442,1709760639153,-500.0,0.00022999,2]
[317350443,1709760639162,-500.0,0.00022999,2]
[317350445,1709760639172,-283.22897942,0.00022999,2]
[317350447,1709760639181,-500.0,0.00022999,2]
[317350449,1709760639190,-356.23693796,0.00022999,2]
[317350451,1709760639199,-500.0,0.00022999,2]
[317350452,1709760639208,-500.0,0.00022999,2]
[317350454,1709760639217,-500.0,0.00022999,2]
[317350456,1709760639226,-500.0,0.00022999,2]
[317350458,1709760639235,-500.0,0.00022999,2]
[317350459,1709760639244,-500.0,0.00022999,2]
[317350460,1709760639253,-500.0,0.00022999,2]
[317350461,1709760639262,-500.0,0.00022999,2]
[317350463,1709760639272,-500.0,0.00022999,2]
[317350465,1709760639281,-176.9056368,0.00022999,2]
[317350466,1709760639290,-276.84141771,0.00023,3]
[317350467,1709760639299,-4063110.51241426,0.00023,5]
[317350469,1709760639312,-22660.50468254,0.00023,5]
[317350471,1709760639323,-11950.9387982,0.00023,5]
[317350472,1709760639333,-1146.809,0.00023,5]
[317350529,1709761537167,-230.10316592,0.000209,2]
[317350530,1709761537187,-803.08280974,0.00021273,2]
[317350532,1709761631094,-2173.36403795,0.00021273,2]
[317350533,1709761634112,-767.51865242,0.00021273,2]
[317350534,1709761634136,-14.41107535,0.00021274,2]
[317350535,1709761637098,-2850.51386546,0.00021274,2]
[317350537,1709761649348,268.45369358,0.00019174,2]
[317350541,1709761771116,-233.3633315,0.00021342,2]
[317350542,1709761771146,-175.050086,0.00021392,2]
[317350543,1709761771175,-9685.0031126,0.0002156,2]
[317350654,1709761837828,-1950.60602556,0.00021559,2]
[317350655,1709761837837,-2019.50127473,0.0002156,2]
[317350656,1709761837894,-1156.32752297,0.0002156,2]
[317350657,1709761837903,-812.0,0.00022,2]
[317350658,1709761837912,-812.0,0.00022192,2]
[317350659,1709761837921,-153.0,0.000222,2]
[317350660,1709761837930,-1141.34951954,0.00022276,2]
[317350661,1709761837940,-812.0,0.00022466,2]
[317350662,1709761837950,-405.0908022,0.00022548,2]
[317350663,1709761837960,-153.0,0.00022548,2]
[317350664,1709761837970,-372.1502476,0.00022548,2]
[317350665,1709761837980,-257.7570699,0.00022548,2]
[317350666,1709761837990,-443.3905123,0.00022548,2]
[317350667,1709761837999,-812.0,0.0002274,2]
[317350668,1709761838010,-184.4128114,0.00022852,2]
[317350669,1709761838020,-7212.49421083,0.000229,2]
[317350670,1709761838033,-5489.37851861,0.000229,2]
[317350671,1709761838043,-324.14,0.0002299,3]
[317350672,1709761838052,-744.79129449,0.00022998,2]
[317350673,1709761838062,-649.73060501,0.00022998,2]
[317350674,1709761838073,-155.0418613,0.00022998,2]
[317350675,1709761838082,-154.98450155,0.00022998,2]
[317350676,1709761838091,-170.85740309,0.00022998,2]
[317350677,1709761838100,-2804.999994,0.00022998,2]
[317350678,1709761838109,-8868.60927529,0.00022998,2]
[317350679,1709761838118,-280.59313816,0.00022998,2]
[317350680,1709761838129,-703.5775733,0.00022998,2]
[317350681,1709761838138,-175.38717322,0.00022998,2]
[317350682,1709761838159,-338.95232531,0.00022999,2]
[317350683,1709761838170,-500.0,0.00022999,2]
[317350684,1709761838179,-204.4532614,0.00022999,2]
[317350685,1709761838189,-416.99443606,0.00022999,2]
[317350686,1709761838199,-154.5883173,0.00022999,2]
[317350687,1709761838209,-500.0,0.00022999,2]
[317350688,1709761838219,-500.0,0.00022999,2]
[317350689,1709761838229,-500.0,0.00022999,2]
[317350690,1709761838241,-500.0,0.00022999,2]
[317350691,1709761838251,-500.0,0.00022999,2]
[317350692,1709761838261,-500.0,0.00022999,2]
[317350693,1709761838270,-500.0,0.00022999,2]
[317350694,1709761838280,-500.0,0.00022999,2]
[317350695,1709761838289,-500.0,0.00022999,2]
[317350696,1709761838302,-500.0,0.00022999,2]
[317350697,1709761838313,-500.0,0.00022999,2]
[317350698,1709761838323,-500.0,0.00022999,2]
[317350699,1709761838333,-254.90608148,0.00022999,2]
[317350700,1709761838342,-500.0,0.00022999,2]
[317350701,1709761838352,-500.0,0.00022999,2]
[317350702,1709761838362,-356.23693796,0.00022999,2]
[317350703,1709761838372,-450.43342915,0.00022999,2]
[317350704,1709761838382,-500.0,0.00022999,2]
[317350705,1709761838393,-273.06499348,0.00022999,2]
[317350706,1709761838403,-345.0,0.00022999,2]
[317350707,1709761838413,-370.1007559,0.00022999,2]
[317350708,1709761838422,-500.0,0.00022999,2]
[317350709,1709761838432,-500.0,0.00022999,2]
[317350710,1709761838442,-500.0,0.00022999,2]
[317350711,1709761838452,-300.0,0.00022999,2]
[317350712,1709761838461,-500.0,0.00022999,2]
[317350713,1709761838471,-500.0,0.00022999,2]
[317350714,1709761838481,-500.0,0.00022999,2]
[317350715,1709761838491,-500.0,0.00022999,2]
[317350716,1709761838501,-195.0,0.00022999,2]
[317350717,1709761838510,-195.0,0.00022999,2]
[317350718,1709761838520,-276.84141771,0.00023,3]
[317350719,1709761838529,-6665.45561963,0.00023,5]
[317350720,1709761838544,-664.51,0.00023,5]
[317350721,1709761838558,-4080564.90453894,0.00023,5]
[317350736,1709761840822,-7420.028938,0.00023,5]
[317350784,1709761842950,-4611.77458847,0.00023,5]
[317350786,1709761842962,-9308.21008907,0.00023,5]
[317350789,1709761842974,-533.58561713,0.00023,5]
[317351066,1709761845964,-510.39061839,0.00023,5]
[317355620,1709762050289,186.84224846,0.00018179,2]
[317355629,1709762855431,178.96912905,0.000189,2]
[317355728,1709763038109,-1950.60602556,0.00021999,2]
[317355730,1709763038121,-674.0,0.00022,2]
[317355732,1709763038130,-674.0,0.00022192,2]
[317355733,1709763038140,-674.0,0.00022466,2]
[317355734,1709763038149,-674.0,0.0002274,2]
[317355735,1709763038159,-163.28505548,0.00022998,2]
[317355737,1709763038169,-524.19922548,0.00022998,2]
[317355738,1709763038178,-595.87918362,0.00022998,2]
[317355739,1709763038188,-154.97749444,0.00022999,2]
[317355740,1709763038198,-4074479.95755436,0.00023,5]
[317355762,1709763043147,-2508.01571527,0.00023,5]
[317355803,1709763609218,916.92630711,0.00019735,2]
[317355805,1709763688430,15940.05331791,0.00019735,2]
[317355806,1709763694728,290.14038118,2.2e-05,2]
[317355807,1709763700384,2375.93108273,0.00019735,2]
[317355808,1709763700657,281.855706,0.00019693,2]
[317355809,1709763718315,250.0,0.00019651,2]
[317355811,1709763887954,663.023466,0.00019511,2]
[317355812,1709763896293,175.654493,0.00019178,2]
[317355819,1709764040957,216.3337696,0.00019982,2]
[317355820,1709764061254,805.88825128,0.000189,2]
[317355821,1709764145681,456.682601,0.00019514,2]
[317355832,1709764206108,1775.5677704,0.00019469,2]
[317355833,1709764208079,24900.0,0.00019471,2]
[317355918,1709764238941,-155.00775039,0.00020448,2]
[317355920,1709764238951,-623.95714562,0.00020449,2]
[317355922,1709764238960,-155.00775039,0.00020449,2]
[317355925,1709764238970,-155.00775039,0.0002045,2]
[317355927,1709764238979,-323.10499161,0.0002045,2]
[317355929,1709764238988,-3142.51763785,0.0002045,2]
[317355930,1709764238997,-745.36465456,0.00020451,2]
[317355932,1709764239007,-1473.39823279,0.00020451,2]
[317355935,1709764239016,-238.75085249,0.00020452,2]
[317355937,1709764239026,-155.00775039,0.00020453,2]
[317355939,1709764239035,-703.5775733,0.00020453,2]
[317355941,1709764239045,-2113.72300496,0.00020454,2]
[317355943,1709764239054,-689.73490581,0.00020454,2]
[317355945,1709764239068,-92.19482196,0.00020454,2]
[317355947,1709764239078,-320.79134332,0.00020454,2]
[317355949,1709764239087,-558.00671069,0.00020454,2]
[317355951,1709764239098,-29.00712403,0.00020454,2]
[317355952,1709764239114,-2567.44222742,0.00020454,2]
[317355953,1709764239122,-262.57477922,0.00020455,7]
[317355954,1709764239132,-682.18594777,0.00020455,2]
[317355955,1709764239141,-449.7690027,0.00020456,2]
[317355956,1709764239152,-6390.96009082,0.00020456,2]
[317355957,1709764239164,-1024.25,0.00020456,2]
[317355958,1709764239176,-8437.90989163,0.00020456,2]
[317355959,1709764239186,-2510.70026131,0.00020456,2]
[317356193,1709764241668,-1950.60602556,0.00020448,2]
[317356194,1709764241678,-1679.89125741,0.00020456,2]
[317356196,1709764241687,-175.654493,0.00020483,2]
[317356197,1709764241697,-310.83201202,0.00020693,2]
[317356198,1709764241706,-175.050086,0.00020715,2]
[317356199,1709764241715,-634.84631536,0.00020722,2]
[317356200,1709764241724,-620.74231577,0.00021758,2]
[317356201,1709764241733,-175.654493,0.00021788,2]
[317356202,1709764241743,-14737.6598309,0.00021805,2]
[317356203,1709764241754,-529.68975891,0.00021805,2]
[317356204,1709764241766,-3581.51591391,0.00021805,2]
[317356205,1709764241778,-1000.41636537,0.00021805,2]
[317356209,1709764241859,-9704.59197805,0.00021805,2]
[317356211,1709764241871,-5947.63666042,0.00021805,2]
[317356213,1709764241883,-1546.1335093,0.00021805,2]
[317356214,1709764241895,-7427.67999714,0.00021805,2]
[317356215,1709764241907,-5524.675986,0.00021805,2]
[317356216,1709764241916,-696.0,0.00022,2]
[317356217,1709764241925,-196.0,0.00022,2]
[317356218,1709764241934,-157.26372662,0.00022,2]
[317356219,1709764241944,-11339.60367448,0.00022072,2]
[317356220,1709764241953,-153.0,0.000221,2]
[317356221,1709764241963,-152.0,0.00022153,2]
[317356222,1709764241972,-696.0,0.00022192,2]
[317356223,1709764241982,-696.0,0.00022466,2]
[317356224,1709764241991,-696.0,0.0002274,2]
[317356225,1709764242000,-606.32476799,0.000229,2]
[317356226,1709764242010,-588.21632226,0.000229,2]
[317356227,1709764242019,-156.08322571,0.00022998,2]
[317356228,1709764242029,-290.22334133,0.00022998,2]
[317356229,1709764242039,-875.11625792,0.00022998,2]
[317356230,1709764242049,-228.39390436,0.00022998,2]
[317356231,1709764242058,-259.20565327,0.00022998,2]
[317356232,1709764242070,-155.79481594,0.00022998,2]
[317356233,1709764242080,-176.34932727,0.00022998,2]
[317356234,1709764242090,-309.82960069,0.00022998,2]
[317356235,1709764242101,-206.2356527,0.00022998,2]
[317356236,1709764242111,-285.53809929,0.00022998,2]
[317356237,1709764242120,-169.02223696,0.00022998,2]
[317356238,1709764242130,-362.70584774,0.00022998,2]
[317356239,1709764242140,-260.84462297,0.00022998,2]
[317356240,1709764242151,-529.13220073,0.00022998,2]
[317356241,1709764242160,-542.93023503,0.00022998,2]
[317356242,1709764242253,-155.74866938,0.00022998,2]
[317356243,1709764242266,-230.58963209,0.00022999,2]
[317356244,1709764242275,-1090.39478065,0.00023,5]
[317356278,1709764243395,-12511.16089401,0.00023,5]
[317356279,1709764243407,-7526.6319178,0.00023,5]
[317356280,1709764243418,-4000.28728371,0.00023,5]
[317356291,1709764246320,-46195.33545759,0.00023,5]
[317356292,1709764250518,15934.83613269,0.00019514,2]
[317356294,1709764502321,450.0,0.00019,2]
[317356295,1709764528804,450.0,0.000192,2]
[317356296,1709764536049,3000.0,0.00019454,2]
[317356297,1709764549350,300.0,0.000195,2]
[317356298,1709764706294,24900.0,0.00019979,2]
[317356299,1709764729318,228.3413,0.00019908,2]
[317356301,1709764855012,7837.2586512,0.00019908,2]
[317356302,1709764889953,175.91107,0.00019509,2]
[317356303,1709764892389,175.91107,0.00019444,2]
[317356304,1709765000914,8214.54883745,0.0002,2]
[317356316,1709765246090,-238.75085249,0.00020304,2]
[317356317,1709765246110,-623.95714562,0.00020305,2]
[317356318,1709765246130,-1310.65603984,0.00020305,2]
[317356323,1709765266620,754.37130083,0.000189,2]
[317356330,1709765384189,174.019034,0.00019539,2]
[317356374,1709765432483,-3142.51763785,0.00020049,2]
[317356376,1709765432493,-703.5775733,0.0002005,2]
[317356378,1709765432502,-781.92972777,0.00020051,2]
[317356380,1709765432511,-375.362052,0.00020052,2]
[317356382,1709765432520,-3743.96550011,0.00020298,2]
[317356383,1709765432529,-320.79134332,0.0002035,2]
[317356386,1709765432539,-289.67124539,0.00020699,2]
[317356388,1709765432548,-623.95714562,0.00021804,2]
[317356389,1709765432557,-50000.0,0.00021805,2]
[317356392,1709765432566,-168.089218,0.00021971,2]
[317356394,1709765432575,-565.0,0.00022,2]
[317356395,1709765432584,-157.26372662,0.00022,2]
[317356397,1709765432593,-565.0,0.00022192,2]
[317356399,1709765432602,-174.019034,0.00022202,2]
[317356401,1709765432611,-565.0,0.00022466,2]
[317356403,1709765432620,-398.6144679,0.00022658,2]
[317356405,1709765432628,-565.0,0.0002274,2]
[317356407,1709765432637,-200.0,0.000228,2]
[317356409,1709765432646,-10603.27122535,0.0002288,6]
[317356411,1709765432655,-55279.30936323,0.000229,2]
[317356492,1709765433428,-15571.24519089,0.000229,2]
[317356494,1709765433440,-500.0,0.00022997,2]
[317356496,1709765433451,-261.80410422,0.00022997,2]
[317356498,1709765433461,-500.0,0.00022997,2]
[317356500,1709765433470,-533.81350609,0.00022997,2]
[317356501,1709765433481,-3930.03440243,0.00022998,2]
[317356503,1709765433491,-15433.84892202,0.00022998,2]
[317356506,1709765433501,-238.45216612,0.00022998,2]
[317356509,1709765433512,-1064.88293475,0.00022998,2]
[317356512,1709765433522,-671.20848751,0.00022999,2]
[317356515,1709765433531,-535.45502657,0.00022999,2]
[317356518,1709765433541,-1040.22868797,0.00022999,2]
[317356521,1709765433550,-232.5277628,0.00022999,2]
[317356524,1709765433560,-207.02911096,0.00022999,2]
[317356527,1709765433569,-3744.01822462,0.00022999,2]
[317356530,1709765433579,-262.30499118,0.00022999,7]
[317356533,1709765433588,-300.43263716,0.00022999,2]
[317356536,1709765433597,-682.18594777,0.00022999,2]
[317356539,1709765433606,-2593.2200122,0.00022999,2]
[317356542,1709765433615,-209.10402295,0.00022999,2]
[317356545,1709765433624,-28171.20386179,0.00023,5]
[317356550,1709765438672,-3954.2553448,0.000229,2]
[317356551,1709765438684,-6477.78172262,0.000229,2]
[317356552,1709765438693,-3408.18620657,0.00023,5]
[317356646,1709765443481,-500.0,0.00022997,2]
[317356648,1709765443493,-303.40554831,0.00022997,2]
[317356650,1709765443501,-186.71226909,0.00022997,2]
[317356651,1709765443510,-500.0,0.00022997,2]
[317356652,1709765443519,-205.0,0.00022997,2]
[317356653,1709765443530,-425.26048006,0.00022997,2]
[317356654,1709765443540,-500.0,0.00022997,2]
[317356655,1709765443551,-157.26372662,0.00022998,2]
[317356656,1709765443562,-361.76919091,0.00022999,2]
[317356657,1709765443572,-3737.41639755,0.00023,5]
[317356665,1709765456016,15934.83613269,0.00019539,2]
[317356671,1709765507618,210.58652518,0.00019539,2]
[317356700,1709765800101,173.352945,0.0001975,2]
[317356701,1709765936145,187.681026,0.00019932,2]
[317356702,1709765944740,2982.3821121,0.00019811,2]
[317356703,1709765989757,24900.0,0.00019608,2]
[317356704,1709766009978,340.6723922,0.00019822,2]
[317356706,1709766190263,3870.49514657,0.00019822,2]
[317356707,1709766472283,612.57202841,0.000189,2]
[317356708,1709766484315,187.681026,0.00019538,2]
[317356717,1709766523311,1220.636849,0.00019633,2]
[317356718,1709766528779,447.30925345,0.00019958,2]
[317356722,1709766550175,-191.44250006,0.00020056,2]
[317356723,1709766550197,-781.92972777,0.00020057,2]
[317356724,1709766550221,-260.66906836,0.00020057,2]
[317356746,1709766632598,-1473.39823279,0.00020052,2]
[317356747,1709766632609,-429.25778161,0.00020052,2]
[317356748,1709766632618,-20493.48050387,0.00020053,2]
[317356749,1709766632628,-3142.51763785,0.00020054,2]
[317356750,1709766632638,-1950.60602556,0.00020055,2]
[317356751,1709766632649,-703.5775733,0.00020055,2]
[317356752,1709766632659,-682.18594777,0.00020075,2]
[317356753,1709766632669,-172.47891415,0.00020076,2]
[317356754,1709766632680,-3931.45950258,0.00021,2]
[317356755,1709766632691,-13184.48775051,0.00021817,2]
[317356771,1709766638643,-795.25274607,0.00021817,2]
[317356773,1709766638655,-7885.1813966,0.00021817,2]
[317356774,1709766638667,-4507.9826309,0.00021817,2]